fUSD/lending_fUSD_20250708
["ID","MTS","AMOUNT","RATE_DAILY","PERIOD"]
[370331323,1751962269707,-460.0,0.00028651,3]
[370331324,1751962269716,-492.14,0.00028651,3]
[370331325,1751962269725,-919.23,0.00028651,3]
[370331326,1751962269735,-1561.45,0.00028651,3]
[370331327,1751962269744,-460.0,0.00028651,3]
[370331328,1751962269754,-460.0,0.00028651,3]
[370331329,1751962269763,-460.0,0.00028651,3]
[370331330,1751962269772,-460.0,0.00028651,3]
[370331331,1751962269782,-800.35,0.00028651,3]
[370331332,1751962269792,-460.0,0.00028651,3]
[370331333,1751962269801,-460.0,0.00028651,3]
[370331334,1751962269811,-544.56,0.00028651,3]
[370331335,1751962269820,-460.0,0.00028651,3]
[370331336,1751962269829,-475.68,0.00028651,3]
[370331337,1751962269838,-533.6,0.00028651,3]
[370331338,1751962269848,-460.0,0.00028651,3]
[370331339,1751962269857,-460.0,0.00028651,3]
[370331340,1751962269866,-1257.65,0.00028651,3]
[370331341,1751962269876,-1159.74,0.00028651,3]
[370331342,1751962269885,-460.0,0.00028651,3]
[370331343,1751962269895,-460.0,0.00028651,3]
[370331344,1751962269904,-555.83,0.00028651,3]
[370331345,1751962269914,-460.0,0.00028651,3]
[370331346,1751962269923,-460.0,0.00028651,3]
[370331347,1751962269933,-460.0,0.00028651,3]
[370331348,1751962269942,-743.32,0.00028651,3]
[370331349,1751962269952,-582.36,0.00028651,3]
[370331350,1751962269962,-995.44,0.00028651,3]
[370331351,1751962269972,-1461.93,0.00028651,3]
[370331352,1751962269982,-460.0,0.00028651,3]
[370331353,1751962269991,-460.0,0.00028651,3]
[370331354,1751962270000,-460.0,0.00028651,3]
[370331355,1751962270009,-535.42,0.00028651,3]
[370331356,1751962270019,-1544.62,0.00028651,3]
[370331357,1751962270028,-1087.5,0.00028651,3]
[370331358,1751962270038,-782.0,0.00028651,3]
[370331359,1751962270050,-475.8,0.00028651,3]
[370331360,1751962270060,-604.67,0.00028651,3]
[370331361,1751962270069,-594.39,0.00028651,3]
[370331362,1751962270079,-1642.18,0.00028651,3]
[370331363,1751962270088,-282.09,0.00028651,3]
[370331364,1751962270098,-501.79,0.00028651,3]
[370331365,1751962270108,-807.19,0.00028651,3]
[370331366,1751962270118,-642.58,0.00028651,3]
[370331367,1751962270127,-564.59,0.00028651,3]
[370331368,1751962270137,-460.0,0.00028651,3]
[370331369,1751962270147,-649.92,0.00028651,3]
[370331370,1751962270156,-602.37,0.00028651,3]
[370331371,1751962270166,-673.0,0.00028651,3]
[370331372,1751962270175,-565.44,0.00028651,3]
[370331373,1751962270186,-1965.25,0.00028651,3]
[370331374,1751962270196,-460.0,0.00028651,3]
[370331375,1751962270205,-486.98,0.00028651,3]
[370331376,1751962270214,-460.0,0.00028651,3]
[370331377,1751962270224,-559.13,0.00028651,3]
[370331378,1751962270234,-460.0,0.00028651,3]
[370331379,1751962270243,-460.0,0.00028651,3]
[370331380,1751962270253,-460.0,0.00028651,3]
[370331381,1751962270263,-1255.32,0.00028651,3]
[370331382,1751962270275,-460.0,0.00028651,3]
[370331383,1751962270285,-460.0,0.00028651,3]
[370331384,1751962270294,-460.0,0.00028651,3]
[370331385,1751962270304,-516.27,0.00028651,3]
[370331386,1751962270314,-534.23,0.00028651,3]
[370331387,1751962270325,-2323.08,0.00028651,3]
[370331388,1751962270335,-500.0,0.00028651,3]
[370331389,1751962270347,-994.11,0.00028651,3]
[370331390,1751962270358,-663.33,0.00028651,3]
[370331391,1751962270368,-460.0,0.00028651,3]
[370331392,1751962270380,-1083.38,0.00028651,3]
[370331393,1751962270390,-664.72,0.00028651,3]
[370331394,1751962270399,-727.62,0.00028651,3]
[370331395,1751962270410,-460.0,0.00028651,3]
[370331396,1751962270419,-673.23,0.00028651,3]
[370331397,1751962270429,-627.94,0.00028651,3]
[370331398,1751962270439,-1000.0,0.00028651,2]
[370331399,1751962270449,-1392.93,0.00028651,3]
[370331400,1751962270459,-1372.69,0.00028651,3]
[370331401,1751962270469,-460.0,0.00028651,3]
[370331402,1751962270478,-492.14,0.00028651,3]
[370331403,1751962270488,-460.0,0.00028651,3]
[370331404,1751962270497,-876.42,0.00028651,3]
[370331405,1751962270507,-460.0,0.00028651,3]
[370331406,1751962270516,-1304.46,0.00028651,3]
[370331407,1751962270526,-2158.73,0.00028651,3]
[370331408,1751962270536,-590.91,0.00028651,3]
[370331409,1751962270545,-1021.17,0.00028651,3]
[370331410,1751962270557,-1059.54,0.00028651,3]
[370331411,1751962270567,-512.7,0.00028651,3]
[370331412,1751962270577,-1377.6,0.00028651,3]
[370331413,1751962270587,-1338.17,0.00028651,3]
[370331414,1751962270596,-0.74730783,0.00028651,3]
[370331415,1751962271472,-314.4423843,0.00028651,3]
[370331416,1751962271599,-150.0,0.00027115,2]
[370331417,1751962271610,-150.0,0.00027134,2]
[370331418,1751962271620,-858.946771,0.00028429,7]
[370331419,1751962271631,-144.81030787,0.00028651,3]
[370331420,1751962271640,-186.61787982,0.00028651,3]
[370331421,1751962271650,-1842.72,0.00028651,3]
[370331422,1751962271660,-1271.84,0.00028651,3]
[370331423,1751962271670,-626.42,0.00028651,3]
[370331424,1751962271680,-763.32,0.00028651,3]
[370331425,1751962271691,-497.17,0.00028651,3]
[370331426,1751962271700,-460.0,0.00028651,3]
[370331427,1751962271710,-663.91,0.00028651,3]
[370331428,1751962271720,-460.0,0.00028651,3]
[370331429,1751962271730,-2913.98,0.00028651,3]
[370331430,1751962271739,-460.0,0.00028651,3]
[370331431,1751962271749,-2146.85,0.00028651,3]
[370331432,1751962271759,-460.0,0.00028651,3]
[370331433,1751962271769,-460.0,0.00028651,3]
[370331434,1751962271779,-460.0,0.00028651,3]
[370331435,1751962271789,-460.0,0.00028651,3]
[370331436,1751962271799,-3149.09,0.00028651,3]
[370331437,1751962271809,-563.54,0.00028651,3]
[370331438,1751962271819,-857.89,0.00028651,3]
[370331439,1751962271829,-460.0,0.00028651,3]
[370331440,1751962271838,-908.67,0.00028651,3]
[370331441,1751962271848,-974.25,0.00028651,3]
[370331442,1751962271858,-1247.25,0.00028651,3]
[370331443,1751962271867,-840.48,0.00028651,3]
[370331444,1751962271877,-619.62,0.00028651,3]
[370331445,1751962271886,-1253.28,0.00028651,3]
[370331446,1751962271896,-812.36,0.00028652,3]
[370331447,1751962271906,-334.6943206,0.00028652,3]
[370331448,1751962271916,-460.0,0.00028652,3]
[370331449,1751962271927,-933.89,0.00028652,3]
[370331450,1751962271936,-460.0,0.00028652,3]
[370331451,1751962271946,-460.0,0.00028652,3]
[370331452,1751962271956,-460.0,0.00028652,3]
[370331453,1751962271967,-460.0,0.00028652,3]
[370331454,1751962271976,-460.0,0.00028652,3]
[370331455,1751962271986,-500.0,0.00028652,3]
[370331456,1751962271995,-460.0,0.00028652,3]
[370331457,1751962272005,-460.0,0.00028652,3]
[370331458,1751962272015,-460.0,0.00028652,3]
[370331459,1751962272024,-460.0,0.00028652,3]
[370331460,1751962272034,-460.0,0.00028652,3]
[370331461,1751962272046,-460.0,0.00028652,3]
[370331462,1751962272060,-460.0,0.00028652,3]
[370331463,1751962272070,-460.0,0.00028652,3]
[370331464,1751962272081,-460.0,0.00028652,3]
[370331465,1751962272090,-451.242696,0.00028652,7]
[370331466,1751962272100,-451.242696,0.00028652,7]
[370331467,1751962272109,-151.0,0.00028652,7]
[370331468,1751962272119,-151.0,0.00028652,7]
[370331469,1751962272129,-323.008975,0.00028652,7]
[370331470,1751962272139,-323.008975,0.00028652,7]
[370331471,1751962272148,-560.572459,0.00028652,7]
[370331472,1751962272158,-560.572459,0.00028652,7]
[370331473,1751962272168,-151.0,0.00028652,7]
[370331474,1751962272177,-151.0,0.00028652,7]
[370331475,1751962272187,-151.0,0.00028652,7]
[370331476,1751962272196,-374.94106,0.00028652,7]
[370331477,1751962272206,-460.0,0.00028652,3]
[370331478,1751962272215,-374.94106,0.00028652,7]
[370331479,1751962272225,-462.13,0.00028652,3]
[370331480,1751962272236,-804.02,0.00028652,3]
[370331481,1751962272246,-545.38,0.00028652,3]
[370331482,1751962272255,-597.74,0.00028652,3]
[370331483,1751962272265,-460.0,0.00028652,3]
[370331484,1751962272274,-460.0,0.00028652,3]
[370331485,1751962272284,-151.0,0.00028652,7]
[370331486,1751962272294,-785.99,0.00028652,3]
[370331487,1751962272303,-572.45,0.00028652,3]
[370331488,1751962272313,-395.570802,0.00028652,7]
[370331489,1751962272322,-1513.28,0.00028652,3]
[370331490,1751962272332,-189.813596,0.00028652,7]
[370331491,1751962272341,-395.570802,0.00028652,7]
[370331492,1751962272351,-189.813596,0.00028652,7]
[370331493,1751962272363,-1095.03,0.00028652,3]
[370331494,1751962272374,-460.0,0.00028652,3]
[370331495,1751962272383,-460.0,0.00028652,3]
[370331496,1751962272393,-460.0,0.00028652,3]
[370331497,1751962272402,-460.0,0.00028652,3]
[370331498,1751962272413,-460.0,0.00028652,3]
[370331499,1751962272422,-187.975838,0.00028652,7]
[370331500,1751962272432,-460.0,0.00028652,3]
[370331501,1751962272441,-187.975844,0.00028652,7]
[370331502,1751962272450,-522.34,0.00028652,3]
[370331503,1751962272460,-555.35523549,0.00028652,3]
[370331504,1751962272469,-460.0,0.00028652,3]
[370331505,1751962272479,-1249.51,0.00028652,3]
[370331506,1751962272488,-460.0,0.00028652,3]
[370331507,1751962272510,-460.0,0.00028652,3]
[370331508,1751962272528,-460.0,0.00028652,3]
[370331509,1751962272547,-519.92,0.00028652,3]
[370331510,1751962272567,-460.0,0.00028652,3]
[370331511,1751962272583,-460.0,0.00028652,3]
[370331512,1751962272603,-471.31,0.00028652,3]
[370331513,1751962272623,-669.06,0.00028652,3]
[370331514,1751962272643,-460.0,0.00028652,3]
[370331515,1751962272663,-151.0,0.00028652,7]
[370331516,1751962272681,-460.0,0.00028652,3]
[370331517,1751962272703,-460.0,0.00028652,3]
[370331518,1751962272718,-754.14,0.00028652,3]
[370331519,1751962272737,-460.0,0.00028652,3]
[370331520,1751962272751,-471.96,0.00028652,3]
[370331521,1751962272771,-230.7,0.00028652,3]
[370331522,1751962272784,-460.0,0.00028652,3]
[370331523,1751962272800,-460.0,0.00028652,3]
[370331524,1751962272826,-460.0,0.00028652,3]
[370331525,1751962272843,-460.0,0.00028652,3]
[370331526,1751962272859,-661.1,0.00028652,3]
[370331527,1751962272875,-151.0,0.00028652,7]
[370331528,1751962272892,-460.0,0.00028652,3]
[370331529,1751962272909,-151.0,0.00028652,7]
[370331530,1751962272926,-151.0,0.00028652,7]
[370331531,1751962272944,-868.38372995,0.00028652,3]
[370331532,1751962272966,-943.98627005,0.00028652,3]
[370331533,1751962272983,-484.90939,0.00028652,7]
[370331534,1751962273000,-200.140188,0.00028652,7]
[370331535,1751962273017,-883.55,0.00028652,3]
[370331536,1751962273032,-484.90939,0.00028652,7]
[370331537,1751962273049,-460.0,0.00028652,3]
[370331538,1751962273067,-200.140188,0.00028652,7]
[370331539,1751962273083,-504.55,0.00028652,3]
[370331540,1751962273099,-661.37,0.00028652,3]
[370331541,1751962273116,-1951.33,0.00028652,3]
[370331542,1751962273131,-860.3,0.00028652,3]
[370331543,1751962273147,-574.13,0.00028652,3]
[370331544,1751962273164,-460.0,0.00028652,3]
[370331545,1751962273179,-786.0,0.00028652,3]
[370331546,1751962273194,-1085.46,0.00028652,3]
[370331547,1751962273211,-521.04,0.00028652,3]
[370331548,1751962273226,-766.7,0.00028652,3]
[370331549,1751962273242,-967.22,0.00028652,3]
[370331550,1751962273258,-1157.25,0.00028652,3]
[370331551,1751962273273,-1214.13,0.00028652,3]
[370331552,1751962273288,-2259.05,0.00028652,3]
[370331553,1751962273304,-605.28,0.00028652,3]
[370331554,1751962273319,-2061.34,0.00028652,3]
[370331555,1751962273334,-819.23,0.00028652,3]
[370331556,1751962273350,-612.44,0.00028652,3]
[370331557,1751962273365,-1232.13,0.00028652,3]
[370331558,1751962273381,-499.75,0.00028652,3]
[370331559,1751962273397,-1801.08,0.00028652,3]
[370331560,1751962273412,-128.92422215,0.00028652,3]
[370331561,1751962275371,-150.0,0.00027355,2]
[370331562,1751962275381,-150.0,0.00027531,2]
[370331563,1751962275390,-150.0,0.00027571,2]
[370331564,1751962275402,-150.0,0.00027791,2]
[370331565,1751962275412,-150.0,0.00027842,2]
[370331566,1751962275422,-150.0,0.00028072,2]
[370331567,1751962275432,-150.0,0.00028337,2]
[370331568,1751962275442,-41.34225089,0.00028373,3]
[370331569,1751962275480,-418.65774911,0.00028373,3]
[370331570,1751962275491,-150.0,0.00028382,2]
[370331571,1751962275501,-490.0,0.00028384,3]
[370331572,1751962275511,-460.0,0.00028384,3]
[370331573,1751962275521,-858.946771,0.00028438,7]
[370331574,1751962275532,-150.0,0.00028474,2]
[370331575,1751962275541,-150.0,0.00028547,2]
[370331576,1751962275550,-150.0,0.00028601,2]
[370331577,1751962275560,-351.44250941,0.0002864,2]
[370331581,1751963213712,150.06,0.00013699,2]
[370331583,1751963236618,167.0,0.000301,120]
[370331584,1751963237327,167.0,0.000301,120]
[370331585,1751963238128,167.0,0.000301,120]
[370331586,1751963238791,167.0,0.000301,120]
[370331587,1751963239294,167.0,0.000301,120]
[370331588,1751963239881,167.0,0.000301,120]
[370331589,1751963240100,167.0,0.000301,120]
[370331590,1751963240458,167.0,0.000301,120]
[370331591,1751963241017,167.0,0.000301,120]
[370331592,1751963242282,167.0,0.000301,120]
[370331593,1751963242905,167.0,0.000301,120]
[370331594,1751963243684,167.0,0.000301,120]
[370331595,1751963244538,167.0,0.000301,120]
[370331596,1751963245332,167.0,0.000301,120]
[370331597,1751963246122,167.0,0.000301,120]
[370331598,1751963247656,167.0,0.000301,120]
[370331599,1751963247943,167.0,0.000301,120]
[370331600,1751963248997,167.0,0.000301,120]
[370331601,1751963249811,167.0,0.000301,120]
[370331602,1751963250800,167.0,0.000301,120]
[370331603,1751963251621,167.0,0.000301,120]
[370331604,1751963252428,167.0,0.000301,120]
[370331605,1751963253419,167.0,0.000301,120]
[370331606,1751963262682,167.0,0.000301,120]
[370331607,1751963281778,169.0,0.000301,120]
[370331609,1751963298074,170.19,0.000301,120]
[370331667,1751963431938,-150.0,0.000181,2]
[370331668,1751963431948,-150.0,0.0001859,2]
[370331669,1751963431958,-150.0,0.0001907,2]
[370331670,1751963431968,-594.65667153,0.000194,2]
[370331671,1751963431980,-3682.61408759,0.000194,2]
[370331672,1751963431990,-150.0,0.0001956,2]
[370331673,1751963431999,-175.98727095,0.00019897,2]
[370331674,1751963432024,-124.01272905,0.00019897,2]
[370331675,1751963432034,-1200.0,0.00019897,2]
[370331676,1751963432043,-151.0,0.00019898,2]
[370331677,1751963432054,-151.0,0.00019898,2]
[370331678,1751963432063,-151.0,0.00019898,2]
[370331679,1751963432073,-151.0,0.00019898,2]
[370331680,1751963432083,-151.0,0.00019898,2]
[370331681,1751963432093,-151.0,0.00019898,2]
[370331682,1751963432105,-151.0,0.00019898,2]
[370331683,1751963432115,-151.0,0.00019898,2]
[370331684,1751963432125,-151.0,0.00019898,2]
[370331685,1751963432134,-2500.0,0.0001991,2]
[370331687,1751963432146,-2500.0,0.0001991,2]
[370331689,1751963432157,-2500.0,0.0001991,2]
[370331691,1751963432167,-150.0,0.0002004,2]
[370331693,1751963432176,-150.0,0.0002053,2]
[370331694,1751963432186,-833.02777546,0.00020547,2]
[370331695,1751963432196,-753.00677877,0.000209,4]
[370331696,1751963432205,-5016.2685014,0.00021,5]
[370331697,1751963432215,-150.0,0.0002101,2]
[370331698,1751963432225,-150.06,0.00021404,2]
[370331699,1751963432234,-150.0,0.000215,2]
[370331700,1751963432245,-753.00677852,0.00021521,5]
[370331701,1751963432254,-684.0,0.00021772,2]
[370331702,1751963432265,-150.0,0.0002199,2]
[370331703,1751963432274,-753.00677852,0.00022141,6]
[370331704,1751963432284,-150.0,0.0002247,2]
[370331705,1751963432294,-166.0,0.00022698,2]
[370331708,1751963432304,-2151.44270289,0.00022699,2]
[370331711,1751963432315,-300.0,0.00022699,2]
[370331713,1751963432328,-1633.05513663,0.00022699,2]
[370331715,1751963432339,-310.17040042,0.00022699,2]
[370331724,1751963432426,-790.25782199,0.00022699,2]
[370331727,1751963432438,-802.09753312,0.00022699,2]
[370331730,1751963432457,-682.69990015,0.00022699,2]
[370331732,1751963432514,-832.45139217,0.00022699,2]
[370331733,1751963432525,-528.54860783,0.00022699,2]
[370331734,1751963432536,-490.56126682,0.00022699,2]
[370331735,1751963432548,-4345.25424954,0.00022699,2]
[370331736,1751963432558,-753.00677852,0.00022762,7]
[370331737,1751963432567,-150.0,0.0002296,2]
[370331738,1751963432576,-753.00677852,0.00023383,9]
[370331739,1751963432585,-240.0,0.0002344,2]
[370331740,1751963432595,-705.56510943,0.00023518,2]
[370331741,1751963432605,-502.51271943,0.00023523,2]
[370331742,1751963432615,-308.0,0.0002357,2]
[370331743,1751963432624,-753.00677852,0.00024003,10]
[370331744,1751963432633,-785.7,0.00024178,2]
[370331746,1751963432642,-1011.56,0.00024178,2]
[370331748,1751963432652,-1500.0,0.00024237,2]
[370331750,1751963432663,-8631.57,0.00024479,2]
[370331752,1751963432673,-308.0,0.0002454,2]
[370331754,1751963432682,-753.00677852,0.00024624,11]
[370331756,1751963432692,-206.26,0.00024737,2]
[370331758,1751963432702,-1052.02,0.00024737,2]
[370331760,1751963432712,-362.37888957,0.00024941,2]
[370331762,1751963432722,-170.16,0.00025,2]
[370331764,1751963432732,-365.82984478,0.00025,5]
[370331766,1751963432741,-200.0,0.00025094,2]
[370331768,1751963432751,-2000.0,0.00025173,5]
[370331770,1751963432760,-753.00677852,0.00025245,12]
[370331772,1751963432770,-325.78283703,0.00025351,2]
[370331774,1751963432780,-308.0,0.0002551,2]
[370331776,1751963432789,-150.0,0.00025529,2]
[370331778,1751963432798,-150.0,0.000256,2]
[370331780,1751963432808,-150.0,0.00025649,2]
[370331782,1751963432817,-150.0,0.00025713,2]
[370331784,1751963432827,-150.0,0.00025721,2]
[370331786,1751963432836,-2221.96227821,0.000258,5]
[370331788,1751963432849,-656.03772179,0.000258,5]
[370331790,1751963432858,-150.0,0.00025819,2]
[370331792,1751963432868,-150.0,0.00025833,2]
[370331794,1751963432878,-150.0,0.00025838,2]
[370331796,1751963432887,-753.00677852,0.00025866,14]
[370331798,1751963432896,-167.02,0.00025869,2]
[370331800,1751963432906,-150.0,0.00025936,2]
[370331802,1751963432915,-150.0,0.00025958,2]
[370331804,1751963432926,-150.0,0.00026014,2]
[370331806,1751963432935,-521.0,0.00026023,2]
[370331808,1751963432945,-355.32903151,0.00026023,2]
[370331811,1751963432957,-150.67093849,0.00026023,2]
[370331813,1751963432967,-150.0,0.00026145,2]
[370331815,1751963432976,-150.0,0.00026224,2]
[370331817,1751963432985,-150.0,0.00026224,2]
[370331819,1751963432995,-150.0,0.0002626,2]
[370331820,1751963433005,-155.14561427,0.0002626,4]
[370331822,1751963433014,-230.27468437,0.0002626,4]
[370331824,1751963433023,-150.0,0.0002626,2]
[370331825,1751963433033,-150.0,0.0002626,2]
[370331827,1751963433043,-13.90876288,0.0002626,2]
[370331829,1751963433055,-136.09123712,0.0002626,2]
[370331831,1751963433065,-150.0,0.0002626,2]
[370331833,1751963433075,-165.74500967,0.0002626,4]
[370331835,1751963433085,-150.0,0.0002626,2]
[370331837,1751963433095,-150.0,0.0002626,2]
[370331839,1751963433105,-150.0,0.0002626,2]
[370331841,1751963433115,-150.0,0.0002626,2]
[370331843,1751963433125,-150.0,0.0002626,2]
[370331845,1751963433135,-150.0,0.0002626,2]
[370331847,1751963433145,-150.0,0.0002626,2]
[370331849,1751963433155,-150.0,0.0002626,2]
[370331851,1751963433164,-18.97455796,0.00026284,2]
[370331853,1751963433177,-131.02544204,0.00026284,2]
[370331855,1751963433187,-155.14561427,0.0002629,4]
[370331857,1751963433198,-230.27468437,0.0002629,4]
[370331859,1751963433208,-150.0,0.00026317,4]
[370331861,1751963433218,-155.14561427,0.00026319,4]
[370331863,1751963433228,-230.27468437,0.00026319,4]
[370331865,1751963433238,-150.0,0.00026323,2]
[370331867,1751963433248,-150.0,0.00026324,4]
[370331868,1751963433258,-150.0,0.00026325,4]
[370331870,1751963433268,-150.0,0.0002633,2]
[370331872,1751963433279,-155.14561427,0.00026349,4]
[370331874,1751963433289,-230.27468437,0.00026349,4]
[370331876,1751963433298,-150.0,0.0002637,4]
[370331878,1751963433308,-150.0,0.00026375,4]
[370331879,1751963433318,-155.14561427,0.00026378,4]
[370331880,1751963433328,-230.27468437,0.00026378,4]
[370331881,1751963433337,-150.0,0.00026387,4]
[370331882,1751963433348,-150.0,0.0002639,4]
[370331883,1751963433358,-150.0,0.00026393,4]
[370331884,1751963433368,-155.14561427,0.00026408,4]
[370331885,1751963433378,-230.27468437,0.00026408,4]
[370331886,1751963433388,-150.0,0.00026425,4]
[370331887,1751963433397,-150.0,0.00026432,4]
[370331888,1751963433406,-155.14561427,0.00026437,4]
[370331889,1751963433416,-230.27468437,0.00026437,4]
[370331890,1751963433427,-150.0,0.00026451,4]
[370331891,1751963433437,-150.0,0.00026455,4]
[370331892,1751963433446,-150.0,0.00026455,4]
[370331893,1751963433456,-155.14561427,0.00026467,4]
[370331894,1751963433466,-230.27468437,0.00026467,4]
[370331895,1751963433475,-150.0,0.00026473,2]
[370331896,1751963433485,-308.0,0.0002648,2]
[370331897,1751963433495,-150.0,0.0002648,4]
[370331898,1751963433509,-753.00677852,0.00026486,15]
[370331899,1751963433519,-150.0,0.00026489,4]
[370331900,1751963433529,-155.14561427,0.00026496,4]
[370331901,1751963433538,-230.27468437,0.00026496,4]
[370331902,1751963433549,-837.09214054,0.0002651,2]
[370331903,1751963433560,-150.0,0.00026514,4]
[370331904,1751963433569,-150.0,0.0002652,4]
[370331905,1751963433580,-155.14561427,0.00026526,4]
[370331906,1751963433590,-230.27468437,0.00026526,4]
[370331907,1751963433600,-150.0,0.00026526,4]
[370331908,1751963433610,-150.0,0.00026536,4]
[370331909,1751963433619,-150.0,0.00026546,4]
[370331910,1751963433629,-150.0,0.00026553,2]
[370331911,1751963433639,-155.14561427,0.00026555,4]
[370331912,1751963433649,-230.27468437,0.00026555,4]
[370331913,1751963433659,-150.0,0.00026577,4]
[370331914,1751963433670,-155.14561427,0.00026584,4]
[370331915,1751963433680,-230.27468437,0.00026584,4]
[370331916,1751963433690,-150.0,0.00026584,4]
[370331917,1751963433700,-150.0,0.00026584,4]
[370331918,1751963433710,-150.0,0.00026591,4]
[370331919,1751963433721,-159.81,0.00026602,2]
[370331920,1751963433731,-150.0,0.00026604,4]
[370331921,1751963433741,-155.14561427,0.00026614,4]
[370331922,1751963433751,-230.27468437,0.00026614,4]
[370331923,1751963433760,-150.0,0.00026625,4]
[370331924,1751963433770,-150.0,0.00026633,2]
[370331925,1751963433780,-150.0,0.00026641,4]
[370331926,1751963433789,-155.14561427,0.00026643,4]
[370331927,1751963433799,-230.27468437,0.00026643,4]
[370331928,1751963433809,-150.0,0.00026646,4]
[370331929,1751963433819,-150.0,0.00026649,4]
[370331930,1751963433829,-150.0,0.00026649,4]
[370331931,1751963433839,-150.0,0.00026658,4]
[370331932,1751963433849,-150.0,0.00026661,4]
[370331933,1751963433859,-155.14561427,0.00026673,4]
[370331934,1751963433869,-230.27468437,0.00026673,4]
[370331935,1751963433878,-150.0,0.00026677,4]
[370331936,1751963433888,-150.0,0.00026701,4]
[370331937,1751963433898,-155.14561427,0.00026702,4]
[370331938,1751963433908,-230.27468437,0.00026702,4]
[370331939,1751963433918,-150.0,0.00026704,4]
[370331940,1751963433928,-150.0,0.00026714,4]
[370331941,1751963433938,-150.0,0.00026718,4]
[370331942,1751963433948,-155.14561427,0.00026732,4]
[370331943,1751963433957,-230.27468437,0.00026732,4]
[370331944,1751963433968,-150.0,0.00026754,2]
[370331945,1751963433978,-150.0,0.00026756,4]
[370331946,1751963433988,-1000.0,0.00026758,2]
[370331947,1751963433998,-155.14561427,0.00026761,4]
[370331948,1751963434008,-230.27468437,0.00026761,4]
[370331949,1751963434017,-165.74500967,0.00026761,4]
[370331950,1751963434028,-150.0,0.00026768,4]
[370331951,1751963434037,-150.0,0.00026775,4]
[370331952,1751963434047,-150.0,0.00026779,4]
[370331953,1751963434057,-155.14561427,0.00026791,4]
[370331954,1751963434067,-230.27468437,0.00026791,4]
[370331955,1751963434077,-165.74500967,0.00026791,4]
[370331956,1751963434086,-150.0,0.00026791,4]
[370331957,1751963434096,-150.0,0.00026811,4]
[370331958,1751963434106,-150.0,0.0002682,2]
[370331959,1751963434116,-155.14561427,0.0002682,4]
[370331960,1751963434125,-230.27468437,0.0002682,4]
[370331961,1751963434134,-165.74500967,0.0002682,4]
[370331962,1751963434144,-150.0,0.00026831,4]
[370331963,1751963434154,-150.0,0.00026832,4]
[370331964,1751963434163,-150.0,0.00026844,4]
[370331965,1751963434174,-150.0,0.00026844,4]
[370331966,1751963434184,-155.14561427,0.0002685,4]
[370331967,1751963434194,-230.27468437,0.0002685,4]
[370331968,1751963434203,-165.74500967,0.0002685,4]
[370331969,1751963434212,-150.0,0.00026866,4]
[370331970,1751963434222,-155.14561427,0.00026879,4]
[370331971,1751963434232,-230.27468437,0.00026879,4]
[370331972,1751963434242,-165.74500967,0.00026879,4]
[370331973,1751963434252,-150.0,0.0002689,4]